Cogmind - Beta 12 @@@ ROGUE MODE // 2023.05.03 @ 13:58:34 Player: Exp. Geonium Core Result: Destroyed by X-62 Marksman with Pulse Rifle Performance ------------- Evolutions (2) 1000 Regions Visited (6) 1200 Robots Destroyed (34) 170 Value Destroyed (807) 807 Prototype IDs (23) 460 Alien Tech Used (0) 0 Bonus (1092) 1092 TOTAL SCORE: 4729 Bonus ------- High Alert Combat Kills 135 Follower Combat Kills 70 Entered Garrisons 200 Used RIF Installer 500 Aligned with FarCom 300 Friendly Fire -113 Cogmind --------- Core Integrity 0/550 Matter 265/300 Energy 100/100 System Corruption 1% Temperature Cool (9) Movement Core (700) Ox13 Location -8/Garrison Parts ------- > --- POWER (1) -------- (None) > --- PROPULSION (3) --- (None) > --- UTILITY (5) ------ High-capacity Storage Unit Signal Interpreter > --- WEAPON (2) ------- Light Assault Rifle > --- INVENTORY (20) --- Ion Engine Compact Wheel Gravmag System Flight Unit Small Storage Unit High-capacity Matter Pod (200) Improved Terrain Scanner Relay Coupler [Swarmer] (29) Relay Coupler [Demolisher] (17) Supersonic Drone Bay (1/1) Small Laser Improved Datajack Improved Datajack Remote Datajack Hammer Peak State ------------ > --- POWER ------------ Light Nuclear Core > --- PROPULSION ------- Aluminum Leg Aluminum Leg Wheel > --- UTILITY ---------- Improved Heat Sink High-capacity Storage Unit Signal Interpreter Target Analyzer Relay Coupler [Sentry] > --- WEAPON ----------- Remote Datajack Hammer > --- INVENTORY -------- Ion Engine Compact Wheel Gravmag System Flight Unit Small Storage Unit High-capacity Matter Pod Improved Terrain Scanner Relay Coupler [Swarmer] Relay Coupler [Grunt] Relay Coupler [Demolisher] Supersonic Drone Bay Small Laser Assault Rifle Assault Rifle Assault Rifle Light Assault Rifle Light Assault Rifle Grenade Launcher [Rating: 26] Favorites ----------- Power Fission Core Engine Ion Engine Power Core Fission Core Propulsion Aluminum Leg Treads Light Treads Leg Aluminum Leg Wheel Wheel Utility Signal Interpreter Device Improved Heat Sink Storage High-capacity Storage Unit Processor Signal Interpreter Hackware Relay Coupler [Sentry] Protection Light Armor Plating Weapon Assault Rifle Energy Gun Small Laser Ballistic Gun Assault Rifle Launcher Grenade Launcher Special Weapon Remote Datajack Impact Weapon Hammer Build | -11 -10 -10 -10 -9 -8 -8 ------- Run | Jun Mat Min Exi Min Mat Gar Slots Evolved 4 | . . . . . 4 . Power . | . . . . . . . Propulsion 1 | . . . . . 1 . Utility 3 | . . . . . 3 . Weapon . | . . . . . . . Parts Attached 39 | . . 3 3 1 1 31 Power 4 | . . 1 . . . 3 Engine . | . . . . . . . Core 4 | . . 1 . . . 3 Reactor . | . . . . . . . Propulsion 8 | . . . 2 . 1 5 Treads 2 | . . . 2 . . . Leg 5 | . . . . . . 5 Wheel 1 | . . . . . 1 . Hover . | . . . . . . . Flight . | . . . . . . . Utility 7 | . . 1 1 . . 5 Device 1 | . . . . . . 1 Storage 1 | . . . 1 . . . Processor 2 | . . 1 . . . 1 Hackware 2 | . . . . . . 2 Protection 1 | . . . . . . 1 Artifact . | . . . . . . . Weapon 20 | . . 1 . 1 . 18 Energy Gun . | . . . . . . . Energy Cannon . | . . . . . . . Ballistic Gun 10 | . . . . . . 10 Ballistic Cannon . | . . . . . . . Launcher 5 | . . . . 1 . 4 Special Weapon 1 | . . . . . . 1 Impact Weapon 4 | . . 1 . . . 3 Slashing Weapon . | . . . . . . . Piercing Weapon . | . . . . . . . Special Melee Weapon . | . . . . . . . Unidentified Prototypes . | . . . . . . . Parts Lost 15 | . . . . . . 15 Power 3 | . . . . . . 3 Propulsion 5 | . . . . . . 5 Utility 3 | . . . . . . 3 Weapon 4 | . . . . . . 4 Highest Loss Streak 13 | . . . . . . 13 To Critical Strikes 2 | . . . . . . 2 Average Slot Usage (%) 88 | . 85 87 99 100 72 86 Engine 1 | . 14 3 . . . . Core 9 | . . 10 14 14 9 8 Treads 8 | . . . 18 28 18 7 Leg 15 | . 28 28 8 . . 11 Wheel 3 | . . . . . 9 6 Device 2 | . . . . . . 6 Storage 11 | . 14 14 14 14 9 9 Processor 9 | . . 2 14 14 9 11 Hackware 1 | . . . . . . 3 Protection 1 | . . . . . . 2 Energy Gun 3 | . 14 12 . . . . Ballistic Gun 10 | . 14 14 14 . . 9 Launcher 2 | . . . . 14 9 3 Impact Weapon 5 | . . 1 14 14 9 5 Naked Turns . | . . . . . . . Heaviest Build 55 | 13 13 19 54 55 55 55 Greatest Support 40 | 20 20 20 40 40 10 30 Greatest Overweight (x) 5 | . . . 1 1 5 5 Average Overweight (x) 1 | . . . . 1 5 4 Largest Inventory Capacity 20 | . 8 8 20 20 20 20 Average Capacity 15 | . 8 8 11 20 20 20 Most Carried 20 | . 8 8 10 10 11 20 Average Carried 12 | . 6 7 8 10 10 17 Final Capacity 20 | 8 8 8 20 20 20 20 Final Carried 15 | 6 8 8 10 10 11 15 Class Distribution -------------------- 78% | Mutant 21% | Scavenger-Mutant Dominant Class ---------------- Mutant | -10/Materials Mutant | -10/Mines Mutant | -10/Exiles Mutant | -9/Mines Mutant | -8/Materials Scavenger-Mutant | -8/Garrison Resources | -11 -10 -10 -10 -9 -8 -8 ----------- Run | Jun Mat Min Exi Min Mat Gar Matter Collected 1507 | 200 . 63 60 11 . 1173 Remotely . | . . . . . . . Salvage Created 946 | . . 130 . 11 . 805 Parts 38 | . . 2 . . . 36 Haulers Intercepted . | . . . . . . . Recyclers Shooed . | . . . . . . . Parts Field Recycled . | . . . . . . . Retrieved Matter . | . . . . . . . Parts Self-Destructed . | . . . . . . . Prevented . | . . . . . . . Kills | -11 -10 -10 -10 -9 -8 -8 ------- Run | Jun Mat Min Exi Min Mat Gar Combat Hostiles Destroyed 31 | . . 1 . . . 30 Guns 11 | . . 1 . . . 10 AOE 20 | . . . . . . 20 Classes Destroyed 6 | . . 2 . 1 . 3 Worker 1 | . . . . 1 . . Recycler 1 | . . 1 . . . . Swarmer 19 | . . . . . . 19 Grunt 10 | . . 1 . . . 9 Specialist 2 | . . . . . . 2 Programmer 1 | . . . . . . 1 Best Kill Streak 6 | . . 1 . 1 . 6 Combat Bots Only 6 | . . 1 . . . 6 Max Kills in Single Turn 4 | . . 1 . 1 . 4 Gunslinging . | . . . . . . . Exploded 4 | . . . . . . 4 Melee . | . . . . . . . Uniques/NPCs Destroyed . | . . . . . . . Combat | -11 -10 -10 -10 -9 -8 -8 -------- Run | Jun Mat Min Exi Min Mat Gar Damage Taken 2185 | . . 196 . . . 1989 Core 586 | . . 35 . . . 551 Absorbed by Shields 61 | . . . . . . 61 Core Remaining (%) 93 | 100 . . . 86 . . Volleys Fired 133 | . . 11 . . . 122 Largest 2 | . . 2 . . . 2 Hottest 60 | . . 60 . . . 40 Shots Fired 231 | . . 22 . . . 209 Gun 203 | . . 22 . . . 181 Cannon . | . . . . . . . Launcher 22 | . . . . . . 22 Special 6 | . . . . . . 6 Kinetic 192 | . . 11 . . . 181 Thermal 11 | . . 11 . . . . Explosive 22 | . . . . . . 22 Electromagnetic . | . . . . . . . Robot Hit Streak 30 | . . 5 . . . 30 Robot Miss Streak 4 | . . 4 . . . 3 Penetration Max . | . . . . . . . Secondary Targets 1 | . . . . . . 1 Max Gunslinging Chain 1 | . . . . . . 1 Shots Hit Robots 183 | . . 11 . 1 . 171 Core Hits 94 | . . 5 . . . 89 Critical Kills 1 | . . . . . . 1 Critical Parts Destroyed 1 | . . . . . . 1 Critical Strikes 2 | . . . . . . 2 Destroy 2 | . . . . . . 2 Melee Attacks 43 | . . 7 . 1 . 35 Impact 43 | . . 7 . 1 . 35 Slashing . | . . . . . . . Piercing . | . . . . . . . Sneak Attacks 1 | . . . . 1 . . Combat Hostiles . | . . . . . . . Follow-up Attacks . | . . . . . . . Damage Inflicted 3267 | . . 151 . 62 . 3054 Guns 1414 | . . 125 . . . 1289 Cannons . | . . . . . . . Explosions 1755 | . . . . . . 1755 Melee 62 | . . . . 62 . . Ramming 36 | . . 26 . . . 10 Kinetic 1352 | . . 63 . . . 1289 Thermal 62 | . . 62 . . . . Explosive 1755 | . . . . . . 1755 Electromagnetic . | . . . . . . . Impact 62 | . . . . 62 . . Slashing . | . . . . . . . Piercing . | . . . . . . . Highest Corruption 1 | . . . . . . 1 Average Corruption 1 | . . . . . . 1 Corruption Purged . | . . . . . . . Corruption Blocked . | . . . . . . . Effects 8 | . . . . . . 8 Message Errors 3 | . . . . . . 3 Heat Flow Errors 2 | . . . . . . 2 Energy Discharges 1 | . . . . . . 1 Data Loss (minor) 1 | . . . . . . 1 Alerts 1 | . . . . . . 1 Overload Shots . | . . . . . . . Overflow Damage 72 | . . . . 22 . 50 Projectiles . | . . . . . . . Explosions 50 | . . . . . . 50 Melee 22 | . . . . 22 . . Knockbacks 1 | . . 1 . . . . Impact 1 | . . 1 . . . . Kinetic . | . . . . . . . Secondary . | . . . . . . . Self-Inflicted Damage 187 | . . . . . . 187 Shots 8 | . . . . . . 8 Rammed . | . . . . . . . Targets Rammed 6 | . . 5 . . . 1 Kicked 6 | . . 5 . . . 1 Crushed . | . . . . . . . Highest Temperature 252 | . . 127 . . . 252 Average Temperature 69 | . . 54 . . . 108 Received Heat Transfer 606 | . . 99 . . . 507 Siege Activations . | . . . . . . . Robots Corrupted . | . . . . . . . Combat Hostiles . | . . . . . . . Parts Fried 1 | . . . . 1 . . Impact Corruptions 1 | . . . . 1 . . Robots Melted . | . . . . . . . Combat Hostiles . | . . . . . . . Parts Melted . | . . . . . . . Heat Transferred 150 | . . 150 . . . . Parts Sabotaged . | . . . . . . . Parts Stolen . | . . . . . . . Parts Stripped . | . . . . . . . Power Chain Reactions . | . . . . . . . Missiles Intercepted . | . . . . . . . Alert | -11 -10 -10 -10 -9 -8 -8 ------- Run | Jun Mat Min Exi Min Mat Gar Peak Influence 794 | . . 50 . 5 1 794 Initial 3 | . . . . . 1 3 Average 203 | . . 13 . 4 1 393 Maximum Alert Level 3 | . . . . . . 3 Low Security (%) 60 | . 100 100 . 100 100 21 Level 1 16 | . . . . . . 32 Level 2 17 | . . . . . . 35 Level 3 5 | . . . . . . 10 Level 4 . | . . . . . . . Level 5 . | . . . . . . . High Security . | . . . . . . . Max Security . | . . . . . . . Squads Dispatched . | . . . . . . . Investigation . | . . . . . . . Extermination . | . . . . . . . Reinforcement . | . . . . . . . Assault . | . . . . . . . Garrison . | . . . . . . . Intercept . | . . . . . . . Searches Triggered . | . . . . . . . Construction Impeded . | . . . . . . . Haulers Reinforced . | . . . . . . . Active Scanning Responses . | . . . . . . . Cargo Convoy Interrupts . | . . . . . . . Stealth | -11 -10 -10 -10 -9 -8 -8 --------- Run | Jun Mat Min Exi Min Mat Gar Distress Signals . | . . . . . . . Communications Jammed . | . . . . . . . Distress Signals . | . . . . . . . Times Spotted 43 | . . 3 . . . 40 Peak Tracking Total 9 | . . 2 . . . 9 Tactical Retreats . | . . . . . . . Traps | -11 -10 -10 -10 -9 -8 -8 ------- Run | Jun Mat Min Exi Min Mat Gar Traps Triggered 6 | . . . . . . 6 Indirectly . | . . . . . . . Trap Hack Attempts . | . . . . . . . Triggered . | . . . . . . . Disarmed . | . . . . . . . Reprogrammed . | . . . . . . . Reused . | . . . . . . . Traps Extracted . | . . . . . . . Installed . | . . . . . . . Triggered . | . . . . . . . Machines | -11 -10 -10 -10 -9 -8 -8 ---------- Run | Jun Mat Min Exi Min Mat Gar Machines Disabled . | . . . . . . . Max in Single Turn . | . . . . . . . Machines Repaired . | . . . . . . . Machines Sabotaged . | . . . . . . . Overloaded Fab Kills . | . . . . . . . Hacking | -11 -10 -10 -10 -9 -8 -8 --------- Run | Jun Mat Min Exi Min Mat Gar Machines Accessed 6 | . . . 2 . 2 2 Terminals 3 | . . . . . 1 2 Fabricators . | . . . . . . . Repair Stations . | . . . . . . . Recycling Units . | . . . . . . . Scanalyzers . | . . . . . . . Garrison Access 1 | . . . . . 1 . Total Hacks 7 | . . . 2 . 2 3 Successful 3 | . . . 2 . 1 . Failed 4 | . . . . . 1 3 Catastrophic 1 | . . . . . 1 . Database Lockouts . | . . . . . . . Manual 2 | . . . 1 . 1 . Terminals 4 | . . . . . 1 3 Fabricators . | . . . . . . . Repair Stations . | . . . . . . . Recycling Units . | . . . . . . . Scanalyzers . | . . . . . . . Garrison Access 1 | . . . . . 1 . Terminal Hacks 2 | . . . 2 . . . Record 1 | . . . 1 . . . EX-Prototype ID Bank 1 | . . . 1 . . . Fabricator Hacks . | . . . . . . . Repair Station Hacks . | . . . . . . . Recycling Unit Hacks . | . . . . . . . Scanalyzer . | . . . . . . . Garrison Access Hacks 1 | . . . . . 1 . Unlock Access 1 | . . . . . 1 . Unauthorized Hacks . | . . . . . . . Terminals . | . . . . . . . Fabricators . | . . . . . . . Repair Stations . | . . . . . . . Recycling Units . | . . . . . . . Scanalyzers . | . . . . . . . Garrison Access . | . . . . . . . Data Cores Recovered . | . . . . . . . Used . | . . . . . . . Hacking Detections 3 | . . . . . 1 2 Full Trace Events . | . . . . . . . Feedback Events . | . . . . . . . Feedback Blocked . | . . . . . . . Robot Schematics Acquired . | . . . . . . . Robots Built . | . . . . . . . Authchips . | . . . . . . . Time . | . . . . . . . Total Robot Build Rating . | . . . . . . . Part Schematics Acquired . | . . . . . . . Parts Built . | . . . . . . . Authchips . | . . . . . . . Time . | . . . . . . . Total Part Build Rating . | . . . . . . . Parts Repaired . | . . . . . . . Time . | . . . . . . . Parts Recycled . | . . . . . . . Recycled Matter . | . . . . . . . Retrieved Matter . | . . . . . . . Retrieved Components . | . . . . . . . Parts Scanalyzed . | . . . . . . . Part Schematics Acquired . | . . . . . . . Parts Damaged . | . . . . . . . Bothacking | -11 -10 -10 -10 -9 -8 -8 ------------ Run | Jun Mat Min Exi Min Mat Gar Used RIF Installer 1 | . . . . . . 1 Robots Hacked 4 | . . . . . . 4 Non-combat . | . . . . . . . Combat 4 | . . . . . . 4 Robot Hacks Applied 4 | . . . . . . 4 scatter_targeting 1 | . . . . . . 1 overwrite_iff 1 | . . . . . . 1 formatsys_high 2 | . . . . . . 2 Relay Couplers Released 4 | . . . . . . 4 Programmers 4 | . . . . . . 4 Attached 2 | . . . . . . 2 Fabnet Peak Effective % . | . . . . . . . Robots Rewired . | . . . . . . . Allies Hacked . | . . . . . . . Hacks Repelled . | . . . . . . . Allies | -11 -10 -10 -10 -9 -8 -8 -------- Run | Jun Mat Min Exi Min Mat Gar Total Allies 5 | . . 2 . . . 3 Largest Group 3 | . . 2 1 . . 3 Highest-Rated Group 56 | . . 56 31 . . 47 Highest-Rated Ally 31 | . . 31 31 . . 16 Total Orders . | . . . . . . . Ally Attacks 17 | . . . . . . 17 Total Damage 269 | . . . . . . 269 Kills 2 | . . . . . . 2 Allies Corrupted . | . . . . . . . Allies Melted . | . . . . . . . Intel | -11 -10 -10 -10 -9 -8 -8 ------- Run | Jun Mat Min Exi Min Mat Gar Robot Analysis Total . | . . . . . . . Derelict Logs Recovered 3 | . . 2 . 1 . . Drone Launches . | . . . . . . . Drone Recoveries . | . . . . . . . Exploration | -11 -10 -10 -10 -9 -8 -8 ------------- Run | Jun Mat Min Exi Min Mat Gar Turns Passed 3063 | . 28 965 408 168 155 1339 Spaces Moved 1511 | 1 22 556 248 69 98 517 Core . | . . . . . . . Treads 205 | . . . 136 69 . . Legs 799 | 1 22 556 112 . . 108 Wheels 507 | . . . . . 98 409 Hover . | . . . . . . . Flight . | . . . . . . . Fastest Speed 120 | 120 120 120 120 240 155 140 Average Speed 148 | 120 120 120 158 240 155 161 Slowest Speed 240 | 120 120 120 240 240 155 190 Overloaded Moves . | . . . . . . . Propulsion Burnouts . | . . . . . . . Robots Hopped . | . . . . . . . Cave-ins Triggered . | . . . . . . . Exploration Rate (%) 36 | 2 10 97 60 22 10 53 Regions Visited 6 Branch Regions 3 Pre-discovered Areas 3 | . . 1 1 1 . . Known Exits Taken 4 | . . 1 1 1 1 . Unknown Exits Taken 2 | 1 1 . . . . . Scrap Searched 2 | . . 2 . . . . Spaces Dug 16 | . . 3 . . . 13 Terrain Destroyed 53 | . . 3 . . . 50 Melee 9 | . . 3 . . . 6 Projectile . | . . . . . . . AOE 44 | . . . . . . 44 Terrain Rammed . | . . . . . . . Walls Destroyed . | . . . . . . . Machines Disabled . | . . . . . . . Actions | -11 -10 -10 -10 -9 -8 -8 --------- Run | Jun Mat Min Exi Min Mat Gar Total 2026 | . 23 818 265 70 101 749 Wait 245 | . . 234 10 . . 1 Move 1506 | . 21 555 247 68 98 517 Hop . | . . . . . . . Pick Up 23 | . 2 1 3 . 2 15 Fast Attach 9 | . . 1 . . . 8 Attach 10 | . . . 2 . 1 7 Detach . | . . . . . . . Swap 20 | . . 2 1 1 . 16 Drop 13 | . . 2 2 . . 9 Fire 133 | . . 11 . . . 122 Melee 43 | . . 7 . 1 . 35 Ram . | . . . . . . . Kick 6 | . . 5 . . . 1 Crush . | . . . . . . . Escape Stasis 18 | . . . . . . 18 Rewire . | . . . . . . . Trap . | . . . . . . . Miscellaneous . | . . . . . . . Route ------- -11/Junkyard -10/Materials -10/Mines (discovered 3 exits: *Mat x2 / *Exi) -10/Exiles -9/Mines -8/Materials -8/Garrison (discovered 1 exit: *Mat) History --------- Turn | Location | Event 1 | -11/Junkyard | Discovered new exit (range 0) 1 | -11/Junkyard | Entered Materials 10 | -10/Materials | Discovered new exit (range 15) 29 | -10/Materials | Entered Mines 30 | -10/Mines | Assembled infested the area 35 | -10/Mines | Assisted by a Guerilla fighting off Assembled 40 | -10/Mines | Met a Derelict bent on vengeance 301 | -10/Mines | Build established: Mutant 608 | -10/Mines | Discovered new exit (range 5) 609 | -10/Mines | Learned Materials terminal intel 808 | -10/Mines | Learned location of Zion (-6) 822 | -10/Mines | Discovered new exit (range 5) 826 | -10/Mines | Identified exit to Materials 989 | -10/Mines | Deemed a non-threat by the Exiles lab entrance 989 | -10/Mines | Discovered new exit (range 5) 993 | -10/Mines | Identified exit to Exiles 994 | -10/Mines | Entered Exiles 994 | -10/Exiles | Accompanied by 1 ally 1023 | -10/Exiles | Met 8R-AWN 1024 | -10/Exiles | Led the pair of lost Derelicts to a safe place 1044 | -10/Exiles | Met EX-HEX 1076 | -10/Exiles | Met EX-BIN 1090 | -10/Exiles | Aligned with FarCom system 1092 | -10/Exiles | Given EX-Vault access code 1120 | -10/Exiles | Opened EX-Vault 1132 | -10/Exiles | Found Supersonic Drone Bay 1163 | -10/Exiles | Warned to stay clear of 0b10 Research branches 1213 | -10/Exiles | Met EX-DEC 1368 | -10/Exiles | Discovered new exit (range 12) 1390 | -10/Exiles | Identified exit to Mines 1402 | -10/Exiles | Left Exiles lab with Supersonic Drone Bay 1402 | -10/Exiles | Entered Mines 1469 | -9/Mines | Discovered new exit (range 13) 1496 | -9/Mines | Identified exit to Materials 1570 | -9/Mines | Entered Materials 1570 | -8/Materials | Evolved 4 slots: Propulsion x1, Utility x3 1571 | -8/Materials | Loaded intel: 12 terminal locations 1725 | -8/Materials | Identified exit to Garrison 1725 | -8/Materials | Entered Garrison 1874 | -8/Garrison | Triggered checkpoint 2056 | -8/Garrison | Triggered checkpoint 2170 | -8/Garrison | Discovered new exit (range 11) 2194 | -8/Garrison | Identified exit to Materials 2260 | -8/Garrison | Triggered checkpoint 2434 | -8/Garrison | Triggered checkpoint 2505 | -8/Garrison | Installed Relay Interface Framework 2552 | -8/Garrison | Triggered checkpoint 2557 | -8/Garrison | Triggered checkpoint 2634 | -8/Garrison | Build established: Scavenger-Mutant 3022 | -8/Garrison | Core integrity fell below 50% 3050 | -8/Garrison | Core integrity fell below 20% 3064 | -8/Garrison | Destroyed by X-62 Marksman with Pulse Rifle Last Messages --------------- 03024_ Penetrated by Slug. 03024_ Aluminum Leg destroyed. 03025_ Penetrated by Slug. 03026_ X-62 Marksman destroyed. 03027_ Lgt. Nuclear Core destroyed. 03028_ Penetrated by Slug. 03030_ Aluminum Leg destroyed. 03031_ Critical hit (Destroy). 03031_ Aluminum Leg destroyed. 03032_ X-62 Marksman destroyed. 03034_ Penetrated by Slug. 03034_ Imp. Heat Sink destroyed. 03037_ Relay Coupler [Sentry] destroyed. 03040_ Penetrated by Slug. 03043_ Assault Rifle destroyed. 03049_ Penetrated by Slug. 03058_ Critical hit (Burn: +37). 03061_ Penetrated by Slug. 03061_ Lgt. Assault Rifle destroyed. 03064_ Penetrated by Slug. Map ----- +----------------------------------------------------+ | ??????????????????????????????????????? | | ??????????????????????????????????????? | | #### #???????????????????????????????? | | #???????????????????????????????? | | #???????????????????????????????? | | #####?????????????????????????????????? | | ??????????????????????????????????????? | | ??????????????????????????????????????? | | ??????????????????????????????????????? | | ??????????????????????????????????????? | | ??????????????????????????????????????? | | ??????????????????????????????????????? | | ########??????????????????????????????? | | #??????????????????????????????? | | #???????####???????????????????? | | #?????### #???????????????????? | | #### #?????#"# "???????????????????? | | ???# #?????#" "???????????????????? | | ???# #??????" "???????????????????? | | ???# #??????? "???????????????????? | | ???# #???????# "???????????????????? | | ???# #???????# #?????####??????????? | | #### ######### #######!!##?????????? | | " %=*##%[!#?????????? | | # %[xx==!#?????????? | | #### ^^#########++#######@!##?????????? | | ???# #????????????????####??????????? | | ???# #??????????????????????????????? | | ???# #??????????????????????????????? | | ???# #??????????????????????????????? | | ???# #??????????????????????????????? | | ???# #??????????????????????????????? | | ???# #??????????????????????????????? | | ???" #??????????????????????????????? | | ???" #??????????????????????????????? | | ???" #??????????????????????????????? | | ???# #??????????????????????????????? | | ???# #??????????????????????????????? | | ???? ???????????????????????????????? | | ??????????????????????????????????????? | | ??????????????????????????????????????? | | ??????????????????????????????????????? | | ??????????????????????????????????????? | | ??????????????????????????????????????? | | ??????????????????????????????????????? | | ??????????????????????????????????????? | | ??????????????????????????????????????? | | ??????????????????????????????????????? | | ??????????????????????????????????????? | | ??????????????????????????????????????? | +----------------------------------------------------+ Best States ------------- Heat Dissipation 45 Energy Generation 18 Energy Capacity 310 Matter Stores 300 Matter Capacity 300 Sight Range 16 Terrain Scan Density 10 Armor Coverage 150 Evasion (%) 55 Target Analysis 5 Recoil Reduction 2 Relay Coupler Types 2 Relay Coupler Value 25 Item Schematics ----------------- None Robot Schematics ------------------ None Fabricated ------------ Nothing Alien Tech Used ----------------- None Achievements -------------- None Challenges ------------ None Game ------ Seed AblativeTerrabombRifle Manual? 0 Play Time 00:15:55 Cumulative 438.6 hours Start 2023.05.03 @ 13:37:19 End 2023.05.03 @ 13:58:34 Sessions 1 Manual Loads 0 Difficulty Rogue Special Mode None Game No. 480 Rogue 480 Adventurer 0 Explorer 0 Win Type - Total 12 Types 8/0/3/1/0/0/0/0/0 Lore% 82 Gallery% 90 Achievement% 80 Wizard Run 0 Options --------- ASCII 0 Keyboard 0 Movement Numpad Keybinds 0 Fullscreen 1 Font 18/Terminus Map View 76x50 Tactical HUD 1 Map Filters NONE Filters NONE Steam 1 RUN: 27f32780-2ecb-4655-b282-dcc83a19cde9